[Event "Titled Tuesday Blitz January 31 Early 2023"]
[White "Rakhmanov, Aleksandr"]
[Black "Royal, Shreyas"]
[WhiteFideId "4173708"]
[BlackFideId "448869"]
[WhiteElo "2632"]
[BlackElo "2438"]
[Result "1-0"]
[Round "05"]
[TimeControl "180+2"]
[Date "2023.01.31"]
[WhiteClock "0:00:04"]
[BlackClock "0:00:32"]

1. d4 {[%clk 0:02:13]}  Nf6 {[%clk 0:02:55]} 2. c4 {[%clk 0:02:11]}  e6 {[%clk 0:02:55]} 3. Nc3 {[%clk 0:02:10]}  d5 {[%clk 0:02:51]} 4. Bg5 {[%clk 0:02:07]}  Bb4 {[%clk 0:02:41]} 5. e3 {[%clk 0:02:06]}  O-O {[%clk 0:02:38]} 6. Nf3 {[%clk 0:02:05]}  h6 {[%clk 0:02:34]} 7. Bxf6 {[%clk 0:02:04]}  Qxf6 {[%clk 0:02:34]} 8. a3 {[%clk 0:02:03]}  Bxc3+ {[%clk 0:02:31]} 9. bxc3 {[%clk 0:02:04]}  dxc4 {[%clk 0:02:29]} 10. Bxc4 {[%clk 0:02:04]}  c5 {[%clk 0:02:30]} 11. O-O {[%clk 0:02:03]}  Nc6 {[%clk 0:02:30]} 12. Qe2 {[%clk 0:02:01]}  b6 {[%clk 0:02:22]} 13. Rad1 {[%clk 0:01:58]}  Bb7 {[%clk 0:02:22]} 14. e4 {[%clk 0:01:58]}  cxd4 {[%clk 0:02:18]} 15. cxd4 {[%clk 0:01:57]}  Rfd8 {[%clk 0:02:15]} 16. d5 {[%clk 0:01:39]}  exd5 {[%clk 0:02:14]} 17. Bxd5 {[%clk 0:01:25]}  Qe7 {[%clk 0:02:14]} 18. Rfe1 {[%clk 0:01:17]}  Rab8 {[%clk 0:02:00]} 19. Qa2 {[%clk 0:01:05]}  Rd7 {[%clk 0:01:50]} 20. Rd2 {[%clk 0:00:56]}  Rbd8 {[%clk 0:01:48]} 21. Red1 {[%clk 0:00:56]}  Kf8 {[%clk 0:01:36]} 22. h3 {[%clk 0:00:37]}  Na5 {[%clk 0:01:16]} 23. a4 {[%clk 0:00:04]}  Bxd5 {[%clk 0:01:03]} 24. exd5 {[%clk 0:00:04]}  Rd6 {[%clk 0:00:59]} 25. Qc2 {[%clk 0:00:03]}  Qb7 {[%clk 0:00:56]} 26. Qh7 {[%clk 0:00:03]}  f6 {[%clk 0:00:47]} 27. Re1 {[%clk 0:00:02]}  Nc4 {[%clk 0:00:45]} 28. Rde2 {[%clk 0:00:02]}  Qxd5 {[%clk 0:00:41]} 29. Nh4 {[%clk 0:00:02]}  Ne5 {[%clk 0:00:35]} 30. f4 {[%clk 0:00:02]}  Qd4+ {[%clk 0:00:35]} 31. Kh1 {[%clk 0:00:03]}  Qxf4 {[%clk 0:00:34]} 32. Rxe5 {[%clk 0:00:03]}  Qxh4 {[%clk 0:00:34]} 33. Qh8+ {[%clk 0:00:03]}  Kf7 {[%clk 0:00:34]} 34. Re7+ {[%clk 0:00:04]}  Kg6 {[%clk 0:00:34]} 35. Qxg7+ {[%clk 0:00:04]}  Kf5 {[%clk 0:00:32]} 36. Rf1+ {[%clk 0:00:04]} 1-0


[Site "https://www.chess.com"]

[Event "Titled Tuesday Blitz January 31 Early 2023"]
[White "Subelj, Jan"]
[Black "De Silva, L M S T"]
[WhiteFideId "14618583"]
[BlackFideId "9953698"]
[WhiteElo "2513"]
[BlackElo "2452"]
[Result "0-1"]
[Round "05"]
[TimeControl "180+2"]
[Date "2023.01.31"]
[WhiteClock "0:00:14"]
[BlackClock "0:01:05"]

1. Nc3 {[%clk 0:02:43]}  c5 {[%clk 0:02:58]} 2. b3 {[%clk 0:02:36]}  d5 {[%clk 0:02:57]} 3. e4 {[%clk 0:02:16]}  d4 {[%clk 0:02:56]} 4. Bb5+ {[%clk 0:02:15]}  Bd7 {[%clk 0:02:56]} 5. Bxd7+ {[%clk 0:02:14]}  Nxd7 {[%clk 0:02:57]} 6. Nce2 {[%clk 0:02:14]}  g6 {[%clk 0:02:58]} 7. d3 {[%clk 0:02:13]}  Bg7 {[%clk 0:02:59]} 8. Nf3 {[%clk 0:02:13]}  e5 {[%clk 0:02:59]} 9. O-O {[%clk 0:02:12]}  Ne7 {[%clk 0:03:00]} 10. Nd2 {[%clk 0:02:12]}  O-O {[%clk 0:03:00]} 11. f4 {[%clk 0:02:12]}  f5 {[%clk 0:03:00]} 12. a3 {[%clk 0:02:08]}  fxe4 {[%clk 0:02:47]} 13. Nxe4 {[%clk 0:02:08]}  Nd5 {[%clk 0:02:46]} 14. Qe1 {[%clk 0:01:55]}  Qe7 {[%clk 0:02:44]} 15. Bd2 {[%clk 0:01:45]}  Bh6 {[%clk 0:02:15]} 16. Qg3 {[%clk 0:01:32]}  N7f6 {[%clk 0:02:02]} 17. Qh3 {[%clk 0:01:26]}  Nh5 {[%clk 0:01:53]} 18. f5 {[%clk 0:01:24]}  Bxd2 {[%clk 0:01:44]} 19. Nxd2 {[%clk 0:01:25]}  Ne3 {[%clk 0:01:45]} 20. fxg6 {[%clk 0:01:20]}  Nxf1 {[%clk 0:01:40]} 21. gxh7+ {[%clk 0:01:17]}  Qxh7 {[%clk 0:01:38]} 22. Nxf1 {[%clk 0:01:04]}  Nf4 {[%clk 0:01:35]} 23. Nxf4 {[%clk 0:01:03]}  Rxf4 {[%clk 0:01:36]} 24. Qe6+ {[%clk 0:01:02]}  Qf7 {[%clk 0:01:34]} 25. Qxe5 {[%clk 0:01:01]}  Re8 {[%clk 0:01:29]} 26. Qg5+ {[%clk 0:01:00]}  Kh7 {[%clk 0:01:30]} 27. Ng3 {[%clk 0:00:52]}  b6 {[%clk 0:01:17]} 28. Rf1 {[%clk 0:00:41]}  Rxf1+ {[%clk 0:01:17]} 29. Nxf1 {[%clk 0:00:42]}  Rf8 {[%clk 0:01:12]} 30. Qh4+ {[%clk 0:00:42]}  Kg7 {[%clk 0:01:12]} 31. Qg5+ {[%clk 0:00:41]}  Qg6 {[%clk 0:01:12]} 32. Qxg6+ {[%clk 0:00:41]}  Kxg6 {[%clk 0:01:12]} 33. Nd2 {[%clk 0:00:41]}  b5 {[%clk 0:01:11]} 34. Ne4 {[%clk 0:00:41]}  Rc8 {[%clk 0:01:09]} 35. Nd6 {[%clk 0:00:27]}  Rb8 {[%clk 0:01:08]} 36. Ne4 {[%clk 0:00:26]}  c4 {[%clk 0:01:05]} 37. bxc4 {[%clk 0:00:22]}  bxc4 {[%clk 0:01:06]} 38. dxc4 {[%clk 0:00:23]}  Rb2 {[%clk 0:01:05]} 39. c5 {[%clk 0:00:15]}  Rxc2 {[%clk 0:01:04]} 40. Kf1 {[%clk 0:00:16]}  d3 {[%clk 0:01:04]} 41. Ke1 {[%clk 0:00:16]}  Re2+ {[%clk 0:01:04]} 42. Kd1 {[%clk 0:00:14]}  Rxe4 {[%clk 0:01:05]} 0-1


[Site "https://www.chess.com"]

[Event "Titled Tuesday Blitz January 31 Early 2023"]
[White "Corrales Jimenez, Fidel"]
[Black "Sharapov, Evgeny"]
[WhiteFideId "3506690"]
[BlackFideId "14103133"]
[WhiteElo "2489"]
[BlackElo "2375"]
[Result "1-0"]
[Round "05"]
[TimeControl "180+2"]
[Date "2023.01.31"]
[WhiteClock "0:00:29"]
[BlackClock "0:00:01"]

1. d4 {[%clk 0:03:00]}  Nf6 {[%clk 0:02:59]} 2. Nc3 {[%clk 0:02:57]}  d5 {[%clk 0:02:57]} 3. Bf4 {[%clk 0:02:57]}  c6 {[%clk 0:02:57]} 4. e3 {[%clk 0:02:55]}  Qb6 {[%clk 0:02:57]} 5. Rb1 {[%clk 0:02:53]}  g6 {[%clk 0:02:57]} 6. h4 {[%clk 0:02:53]}  h5 {[%clk 0:02:55]} 7. Nf3 {[%clk 0:02:53]}  Bg4 {[%clk 0:02:54]} 8. Be2 {[%clk 0:02:53]}  Bg7 {[%clk 0:02:53]} 9. Ne5 {[%clk 0:02:53]}  Bxe2 {[%clk 0:02:53]} 10. Qxe2 {[%clk 0:02:54]}  Nbd7 {[%clk 0:02:52]} 11. a3 {[%clk 0:02:52]}  O-O {[%clk 0:02:50]} 12. b4 {[%clk 0:02:52]}  Nxe5 {[%clk 0:02:49]} 13. Bxe5 {[%clk 0:02:53]}  Rfe8 {[%clk 0:02:32]} 14. O-O {[%clk 0:02:30]}  Ne4 {[%clk 0:02:29]} 15. Nxe4 {[%clk 0:02:29]}  Bxe5 {[%clk 0:02:22]} 16. dxe5 {[%clk 0:02:26]}  dxe4 {[%clk 0:02:22]} 17. Qc4 {[%clk 0:02:26]}  Rad8 {[%clk 0:02:07]} 18. Qxe4 {[%clk 0:02:24]}  Rd2 {[%clk 0:02:02]} 19. e6 {[%clk 0:01:49]}  f5 {[%clk 0:02:00]} 20. Qf4 {[%clk 0:01:49]}  Rd6 {[%clk 0:01:49]} 21. Rbd1 {[%clk 0:01:45]}  Red8 {[%clk 0:01:42]} 22. Rd3 {[%clk 0:01:39]}  Rxd3 {[%clk 0:01:38]} 23. cxd3 {[%clk 0:01:40]}  Rd6 {[%clk 0:01:34]} 24. e4 {[%clk 0:01:28]}  Qb5 {[%clk 0:01:28]} 25. e5 {[%clk 0:01:22]}  Rxe6 {[%clk 0:01:23]} 26. d4 {[%clk 0:01:22]}  Qd5 {[%clk 0:01:16]} 27. Rc1 {[%clk 0:01:20]}  b6 {[%clk 0:01:16]} 28. Qe3 {[%clk 0:01:18]}  Kg7 {[%clk 0:01:10]} 29. f4 {[%clk 0:01:17]}  a5 {[%clk 0:01:00]} 30. bxa5 {[%clk 0:01:17]}  Qxa5 {[%clk 0:00:59]} 31. Kh2 {[%clk 0:01:16]}  Qd5 {[%clk 0:00:54]} 32. a4 {[%clk 0:01:14]}  c5 {[%clk 0:00:36]} 33. dxc5 {[%clk 0:01:14]}  bxc5 {[%clk 0:00:36]} 34. Rxc5 {[%clk 0:01:15]}  Qa2 {[%clk 0:00:33]} 35. a5 {[%clk 0:01:14]}  Ra6 {[%clk 0:00:29]} 36. Qc3 {[%clk 0:01:13]}  Qa4 {[%clk 0:00:23]} 37. Kg3 {[%clk 0:01:06]}  Kf7 {[%clk 0:00:14]} 38. Qd3 {[%clk 0:00:37]}  Re6 {[%clk 0:00:02]} 39. Qd5 {[%clk 0:00:33]}  Qa3+ {[%clk 0:00:01]} 40. Kh2 {[%clk 0:00:29]} 1-0


[Site "https://www.chess.com"]

[Event "Titled Tuesday Blitz January 31 Early 2023"]
[White "Md, Imran"]
[Black "Sokolovsky, Yahli"]
[WhiteFideId "25748580"]
[BlackFideId "2820242"]
[WhiteElo "2284"]
[BlackElo "2461"]
[Result "1-0"]
[Round "05"]
[TimeControl "180+2"]
[Date "2023.01.31"]
[WhiteClock "0:01:18"]
[BlackClock "0:00:06"]

1. Nf3 {[%clk 0:02:57]}  d6 {[%clk 0:02:58]} 2. d4 {[%clk 0:02:50]}  g6 {[%clk 0:02:59]} 3. Nc3 {[%clk 0:02:48]}  Bg7 {[%clk 0:02:59]} 4. e4 {[%clk 0:02:47]}  a6 {[%clk 0:02:59]} 5. a4 {[%clk 0:02:46]}  Nc6 {[%clk 0:02:52]} 6. Be2 {[%clk 0:02:40]}  e5 {[%clk 0:02:48]} 7. dxe5 {[%clk 0:02:32]}  Nxe5 {[%clk 0:02:45]} 8. Nxe5 {[%clk 0:02:31]}  Bxe5 {[%clk 0:02:45]} 9. O-O {[%clk 0:02:30]}  g5 {[%clk 0:02:26]} 10. Nd5 {[%clk 0:02:22]}  c6 {[%clk 0:02:03]} 11. Nb4 {[%clk 0:02:20]}  Be6 {[%clk 0:01:51]} 12. Nd3 {[%clk 0:02:12]}  Bg7 {[%clk 0:01:38]} 13. f4 {[%clk 0:02:09]}  Qb6+ {[%clk 0:01:38]} 14. Kh1 {[%clk 0:02:04]}  gxf4 {[%clk 0:01:38]} 15. Nxf4 {[%clk 0:02:00]}  O-O-O {[%clk 0:01:29]} 16. Nxe6 {[%clk 0:01:59]}  fxe6 {[%clk 0:01:30]} 17. Bg5 {[%clk 0:02:00]}  Rd7 {[%clk 0:00:33]} 18. Bg4 {[%clk 0:01:57]}  Qxb2 {[%clk 0:00:33]} 19. Bxe6 {[%clk 0:01:48]}  Qxa1 {[%clk 0:00:29]} 20. Bxd7+ {[%clk 0:01:47]}  Kc7 {[%clk 0:00:29]} 21. Qxa1 {[%clk 0:01:37]}  Bxa1 {[%clk 0:00:28]} 22. Be6 {[%clk 0:01:33]}  Be5 {[%clk 0:00:08]} 23. Rf8 {[%clk 0:01:26]}  h6 {[%clk 0:00:09]} 24. Bd8+ {[%clk 0:01:18]}  Kb8 {[%clk 0:00:06]} 25. Bb6# {[%clk 0:01:18]} 1-0


[Site "https://www.chess.com"]

[Event "Titled Tuesday Blitz January 31 Early 2023"]
[White "Cella, Glaucio Dalla Cortt"]
[Black "Ajay, Karthikeyan"]
[WhiteFideId "2119455"]
[BlackFideId "35011685"]
[WhiteElo "1894"]
[BlackElo "2454"]
[Result "1-0"]
[Round "05"]
[TimeControl "180+2"]
[Date "2023.01.31"]
[WhiteClock "0:01:26"]
[BlackClock "0:00:03"]

1. e4 {[%clk 0:02:49]}  e5 {[%clk 0:02:57]} 2. Nf3 {[%clk 0:02:50]}  Nc6 {[%clk 0:02:57]} 3. d4 {[%clk 0:02:50]}  exd4 {[%clk 0:02:56]} 4. Bc4 {[%clk 0:02:51]}  Nf6 {[%clk 0:02:52]} 5. e5 {[%clk 0:02:51]}  d5 {[%clk 0:02:47]} 6. Bb5 {[%clk 0:02:51]}  Ne4 {[%clk 0:02:40]} 7. Nxd4 {[%clk 0:02:51]}  Bc5 {[%clk 0:02:34]} 8. Nxc6 {[%clk 0:02:51]}  bxc6 {[%clk 0:02:03]} 9. Bxc6+ {[%clk 0:02:50]}  Ke7 {[%clk 0:02:04]} 10. O-O {[%clk 0:02:29]}  Ba6 {[%clk 0:02:03]} 11. Nc3 {[%clk 0:02:15]}  Bxf1 {[%clk 0:01:57]} 12. Kxf1 {[%clk 0:02:16]}  Nxc3 {[%clk 0:01:54]} 13. bxc3 {[%clk 0:02:16]}  Rb8 {[%clk 0:01:35]} 14. Bg5+ {[%clk 0:02:03]}  f6 {[%clk 0:01:35]} 15. exf6+ {[%clk 0:02:04]}  gxf6 {[%clk 0:01:36]} 16. Qf3 {[%clk 0:02:02]}  Rf8 {[%clk 0:00:57]} 17. Bh6 {[%clk 0:02:00]}  Bd6 {[%clk 0:00:26]} 18. Re1+ {[%clk 0:02:00]}  Be5 {[%clk 0:00:26]} 19. Rxe5+ {[%clk 0:01:45]}  fxe5 {[%clk 0:00:26]} 20. Bg5+ {[%clk 0:01:46]}  Ke6 {[%clk 0:00:22]} 21. Qh3+ {[%clk 0:01:43]}  Kd6 {[%clk 0:00:22]} 22. Bxd8 {[%clk 0:01:43]}  Rbxd8 {[%clk 0:00:21]} 23. Ba4 {[%clk 0:01:41]}  e4 {[%clk 0:00:15]} 24. Qxh7 {[%clk 0:01:40]}  Rf6 {[%clk 0:00:12]} 25. Qh4 {[%clk 0:01:35]}  Rdf8 {[%clk 0:00:12]} 26. Qg3+ {[%clk 0:01:36]}  Rf4 {[%clk 0:00:10]} 27. Ke2 {[%clk 0:01:35]}  Kc5 {[%clk 0:00:10]} 28. Ke3 {[%clk 0:01:32]}  R4f7 {[%clk 0:00:10]} 29. f3 {[%clk 0:01:26]}  exf3 {[%clk 0:00:09]} 30. gxf3 {[%clk 0:01:27]}  Kc4 {[%clk 0:00:06]} 31. Qg4+ {[%clk 0:01:26]}  Kc5 {[%clk 0:00:03]} 32. Qb4# {[%clk 0:01:26]} 1-0


[Site "https://www.chess.com"]

[Event "Titled Tuesday Blitz January 31 Early 2023"]
[White "Rohith Krishna S"]
[Black "Roux, Baptiste"]
[WhiteFideId "46617051"]
[BlackFideId "36017450"]
[WhiteElo "2385"]
[BlackElo "2300"]
[Result "0-1"]
[Round "05"]
[TimeControl "180+2"]
[Date "2023.01.31"]
[WhiteClock "0:00:23"]
[BlackClock "0:00:12"]

1. e4 {[%clk 0:02:56]}  c5 {[%clk 0:03:00]} 2. d4 {[%clk 0:02:35]}  cxd4 {[%clk 0:02:59]} 3. c3 {[%clk 0:02:36]}  dxc3 {[%clk 0:02:59]} 4. Nxc3 {[%clk 0:02:37]}  Nc6 {[%clk 0:03:00]} 5. Nf3 {[%clk 0:02:37]}  e6 {[%clk 0:02:58]} 6. Bb5 {[%clk 0:02:34]}  a6 {[%clk 0:02:57]} 7. Ba4 {[%clk 0:02:33]}  b5 {[%clk 0:02:56]} 8. Bc2 {[%clk 0:02:34]}  Bb7 {[%clk 0:02:55]} 9. O-O {[%clk 0:02:35]}  Nge7 {[%clk 0:02:55]} 10. e5 {[%clk 0:02:33]}  Ng6 {[%clk 0:02:44]} 11. Re1 {[%clk 0:02:29]}  Qc7 {[%clk 0:02:39]} 12. Qe2 {[%clk 0:02:28]}  Bc5 {[%clk 0:02:35]} 13. Ne4 {[%clk 0:02:26]}  Be7 {[%clk 0:02:34]} 14. Ng3 {[%clk 0:02:24]}  O-O {[%clk 0:02:27]} 15. h4 {[%clk 0:02:24]}  Rfd8 {[%clk 0:02:16]} 16. h5 {[%clk 0:02:22]}  Nf8 {[%clk 0:02:17]} 17. h6 {[%clk 0:02:14]}  d6 {[%clk 0:01:49]} 18. hxg7 {[%clk 0:02:13]}  Ng6 {[%clk 0:01:47]} 19. exd6 {[%clk 0:02:10]}  Bxd6 {[%clk 0:01:42]} 20. Nh5 {[%clk 0:02:10]}  Be7 {[%clk 0:01:32]} 21. Bh6 {[%clk 0:01:58]}  Nd4 {[%clk 0:01:25]} 22. Nxd4 {[%clk 0:01:57]}  Rxd4 {[%clk 0:01:24]} 23. Rac1 {[%clk 0:01:54]}  Rh4 {[%clk 0:01:20]} 24. Ng3 {[%clk 0:01:37]}  Bc5 {[%clk 0:01:01]} 25. Be3 {[%clk 0:01:25]}  Nf4 {[%clk 0:01:01]} 26. Bxh7+ {[%clk 0:00:42]}  Rxh7 {[%clk 0:00:54]} 27. Qc2 {[%clk 0:00:43]}  Qc6 {[%clk 0:00:23]} 28. f3 {[%clk 0:00:43]}  Bxe3+ {[%clk 0:00:20]} 29. Rxe3 {[%clk 0:00:44]}  Qxc2 {[%clk 0:00:20]} 30. Rxc2 {[%clk 0:00:45]}  Rc8 {[%clk 0:00:21]} 31. Rd2 {[%clk 0:00:43]}  Rxg7 {[%clk 0:00:20]} 32. Kf2 {[%clk 0:00:43]}  Bd5 {[%clk 0:00:14]} 33. b3 {[%clk 0:00:43]}  Kh7 {[%clk 0:00:14]} 34. Re5 {[%clk 0:00:42]}  Rcg8 {[%clk 0:00:13]} 35. Rd1 {[%clk 0:00:40]}  Kg6 {[%clk 0:00:13]} 36. Ke3 {[%clk 0:00:26]}  Nxg2+ {[%clk 0:00:13]} 37. Kf2 {[%clk 0:00:26]}  Kf6 {[%clk 0:00:13]} 38. Rexd5 {[%clk 0:00:20]}  exd5 {[%clk 0:00:11]} 39. Nh5+ {[%clk 0:00:20]}  Ke6 {[%clk 0:00:12]} 40. Nxg7+ {[%clk 0:00:21]}  Rxg7 {[%clk 0:00:12]} 41. Rg1 {[%clk 0:00:21]}  d4 {[%clk 0:00:10]} 42. Rc1 {[%clk 0:00:21]}  Kd5 {[%clk 0:00:10]} 43. Rc8 {[%clk 0:00:21]}  Ne3 {[%clk 0:00:10]} 44. Rd8+ {[%clk 0:00:22]}  Kc5 {[%clk 0:00:11]} 45. Rc8+ {[%clk 0:00:21]}  Kb4 {[%clk 0:00:11]} 46. Rd8 {[%clk 0:00:22]}  Kc3 {[%clk 0:00:12]} 47. f4 {[%clk 0:00:22]}  Kd3 {[%clk 0:00:11]} 48. Kf3 {[%clk 0:00:23]}  f5 {[%clk 0:00:11]} 49. a4 {[%clk 0:00:22]}  bxa4 {[%clk 0:00:11]} 50. bxa4 {[%clk 0:00:22]}  Kc3 {[%clk 0:00:12]} 51. Rd6 {[%clk 0:00:23]}  Nc4 {[%clk 0:00:12]} 52. Rxa6 {[%clk 0:00:23]}  d3 {[%clk 0:00:13]} 53. Ra8 {[%clk 0:00:23]}  Rd7 {[%clk 0:00:12]} 0-1


[Site "https://www.chess.com"]

[Event "Titled Tuesday Blitz January 31 Early 2023"]
[White "Salimova, Nurgyul"]
[Black "Manukyan, Artyom"]
[WhiteFideId "2915138"]
[BlackFideId "13305786"]
[WhiteElo "2391"]
[BlackElo "2110"]
[Result "1-0"]
[Round "05"]
[TimeControl "180+2"]
[Date "2023.01.31"]
[WhiteClock "0:01:16"]
[BlackClock "0:00:41"]

1. d4 {[%clk 0:03:00]}  d5 {[%clk 0:02:54]} 2. c4 {[%clk 0:02:59]}  e6 {[%clk 0:02:55]} 3. Nf3 {[%clk 0:02:59]}  Nf6 {[%clk 0:02:55]} 4. g3 {[%clk 0:03:00]}  Be7 {[%clk 0:02:55]} 5. Bg2 {[%clk 0:03:00]}  O-O {[%clk 0:02:56]} 6. O-O {[%clk 0:03:00]}  dxc4 {[%clk 0:02:56]} 7. Qc2 {[%clk 0:03:00]}  a6 {[%clk 0:02:56]} 8. a4 {[%clk 0:03:00]}  Bd7 {[%clk 0:02:56]} 9. Rd1 {[%clk 0:02:59]}  Bc6 {[%clk 0:02:57]} 10. Bg5 {[%clk 0:02:59]}  b5 {[%clk 0:02:53]} 11. Bxf6 {[%clk 0:02:48]}  Bxf6 {[%clk 0:02:53]} 12. Nc3 {[%clk 0:02:48]}  Qe8 {[%clk 0:02:53]} 13. d5 {[%clk 0:02:48]}  exd5 {[%clk 0:02:50]} 14. Nd4 {[%clk 0:02:46]}  Bxd4 {[%clk 0:02:08]} 15. Rxd4 {[%clk 0:02:45]}  Nd7 {[%clk 0:02:05]} 16. Nxd5 {[%clk 0:02:31]}  Bxd5 {[%clk 0:01:58]} 17. Bxd5 {[%clk 0:02:32]}  Rd8 {[%clk 0:01:56]} 18. Rad1 {[%clk 0:02:29]}  c5 {[%clk 0:01:40]} 19. Re4 {[%clk 0:02:16]}  Ne5 {[%clk 0:01:18]} 20. f4 {[%clk 0:02:16]}  bxa4 {[%clk 0:01:03]} 21. Rxe5 {[%clk 0:02:15]}  Qb5 {[%clk 0:01:00]} 22. Kf2 {[%clk 0:01:33]}  Qb4 {[%clk 0:00:52]} 23. Qf5 {[%clk 0:01:21]}  Qxb2 {[%clk 0:00:44]} 24. Bxf7+ {[%clk 0:01:16]}  Kh8 {[%clk 0:00:41]} 25. Qxh7+ {[%clk 0:01:16]} 1-0


[Site "https://www.chess.com"]

[Event "Titled Tuesday Blitz January 31 Early 2023"]
[White "Nigmatov, Ortik"]
[Black "Rangel, Daniel"]
[WhiteFideId "14202131"]
[BlackFideId "2124475"]
[WhiteElo "2438"]
[BlackElo "2207"]
[Result "1-0"]
[Round "05"]
[TimeControl "180+2"]
[Date "2023.01.31"]
[WhiteClock "0:01:29"]
[BlackClock "0:00:04"]

1. e4 {[%clk 0:02:56]}  c5 {[%clk 0:02:59]} 2. Nf3 {[%clk 0:02:55]}  g6 {[%clk 0:03:00]} 3. d4 {[%clk 0:02:54]}  cxd4 {[%clk 0:03:00]} 4. Nxd4 {[%clk 0:02:54]}  Bg7 {[%clk 0:03:00]} 5. Nc3 {[%clk 0:02:55]}  Nc6 {[%clk 0:03:00]} 6. Be3 {[%clk 0:02:54]}  Nf6 {[%clk 0:03:01]} 7. Bc4 {[%clk 0:02:51]}  O-O {[%clk 0:03:01]} 8. Bb3 {[%clk 0:02:51]}  Re8 {[%clk 0:03:00]} 9. f3 {[%clk 0:02:48]}  e6 {[%clk 0:02:59]} 10. f4 {[%clk 0:02:48]}  d6 {[%clk 0:02:38]} 11. O-O {[%clk 0:02:46]}  a6 {[%clk 0:02:37]} 12. Kh1 {[%clk 0:02:39]}  Qc7 {[%clk 0:02:32]} 13. Qf3 {[%clk 0:02:27]}  Bd7 {[%clk 0:02:21]} 14. Rae1 {[%clk 0:02:25]}  Nxd4 {[%clk 0:02:20]} 15. Bxd4 {[%clk 0:02:26]}  Bc6 {[%clk 0:02:20]} 16. Qh3 {[%clk 0:02:19]}  b5 {[%clk 0:01:52]} 17. Qh4 {[%clk 0:02:14]}  e5 {[%clk 0:01:34]} 18. fxe5 {[%clk 0:02:12]}  dxe5 {[%clk 0:01:35]} 19. Be3 {[%clk 0:02:02]}  b4 {[%clk 0:01:09]} 20. Rxf6 {[%clk 0:02:01]}  Bxf6 {[%clk 0:00:38]} 21. Qxf6 {[%clk 0:01:58]}  Qe7 {[%clk 0:00:37]} 22. Qxe7 {[%clk 0:01:50]}  Rxe7 {[%clk 0:00:36]} 23. Nd5 {[%clk 0:01:51]}  Bxd5 {[%clk 0:00:36]} 24. exd5 {[%clk 0:01:52]}  Rd7 {[%clk 0:00:35]} 25. Bg5 {[%clk 0:01:49]}  Kg7 {[%clk 0:00:34]} 26. Bd2 {[%clk 0:01:43]}  a5 {[%clk 0:00:31]} 27. Rxe5 {[%clk 0:01:42]}  a4 {[%clk 0:00:21]} 28. Bc4 {[%clk 0:01:40]}  Rc8 {[%clk 0:00:20]} 29. b3 {[%clk 0:01:40]}  axb3 {[%clk 0:00:19]} 30. axb3 {[%clk 0:01:41]}  Ra8 {[%clk 0:00:17]} 31. h3 {[%clk 0:01:41]}  Ra2 {[%clk 0:00:15]} 32. Bxb4 {[%clk 0:01:37]}  Rxc2 {[%clk 0:00:14]} 33. Kh2 {[%clk 0:01:34]}  Rb7 {[%clk 0:00:09]} 34. Bc5 {[%clk 0:01:31]}  Rd7 {[%clk 0:00:06]} 35. d6 {[%clk 0:01:31]}  Rd2 {[%clk 0:00:06]} 36. b4 {[%clk 0:01:30]}  Kf6 {[%clk 0:00:05]} 37. Re3 {[%clk 0:01:29]}  Rb2 {[%clk 0:00:04]} 38. Bd4+ {[%clk 0:01:29]} 1-0


[Site "https://www.chess.com"]

[Event "Titled Tuesday Blitz January 31 Early 2023"]
[White "Agasarov, Benik"]
[Black "Ongut, Tamas Gunes"]
[WhiteFideId "13314823"]
[BlackFideId "770280"]
[WhiteElo "2235"]
[BlackElo "2299"]
[Result "1-0"]
[Round "05"]
[TimeControl "180+2"]
[Date "2023.01.31"]
[WhiteClock "0:01:09"]
[BlackClock "0:01:40"]

1. d4 {[%clk 0:03:00]}  d5 {[%clk 0:02:58]} 2. c4 {[%clk 0:03:00]}  e6 {[%clk 0:02:59]} 3. Nc3 {[%clk 0:03:00]}  c5 {[%clk 0:02:58]} 4. cxd5 {[%clk 0:02:59]}  cxd4 {[%clk 0:02:59]} 5. Qa4+ {[%clk 0:02:56]}  Bd7 {[%clk 0:02:59]} 6. Qxd4 {[%clk 0:02:56]}  exd5 {[%clk 0:02:59]} 7. Qxd5 {[%clk 0:02:52]}  Nf6 {[%clk 0:02:59]} 8. Qd1 {[%clk 0:02:52]}  Bc5 {[%clk 0:02:56]} 9. Nf3 {[%clk 0:02:52]}  O-O {[%clk 0:02:55]} 10. e3 {[%clk 0:02:52]}  Qe7 {[%clk 0:02:48]} 11. Be2 {[%clk 0:02:52]}  Rd8 {[%clk 0:02:48]} 12. O-O {[%clk 0:02:50]}  Nc6 {[%clk 0:02:49]} 13. a3 {[%clk 0:02:40]}  Ne5 {[%clk 0:02:48]} 14. b4 {[%clk 0:02:17]}  Bd6 {[%clk 0:02:33]} 15. Bb2 {[%clk 0:02:12]}  Bg4 {[%clk 0:02:32]} 16. Nd4 {[%clk 0:02:05]}  Bxe2 {[%clk 0:02:21]} 17. Qxe2 {[%clk 0:02:06]}  Neg4 {[%clk 0:02:21]} 18. h3 {[%clk 0:01:58]}  Qe5 {[%clk 0:02:20]} 19. Nf3 {[%clk 0:01:56]}  Qh5 {[%clk 0:02:11]} 20. hxg4 {[%clk 0:01:49]}  Nxg4 {[%clk 0:02:12]} 21. g3 {[%clk 0:01:38]}  Rac8 {[%clk 0:02:08]} 22. Kg2 {[%clk 0:01:32]}  Be5 {[%clk 0:01:59]} 23. Rh1 {[%clk 0:01:28]}  Qf5 {[%clk 0:01:57]} 24. Nxe5 {[%clk 0:01:25]}  Nxe5 {[%clk 0:01:54]} 25. e4 {[%clk 0:01:22]}  Qf6 {[%clk 0:01:49]} 26. Nd5 {[%clk 0:01:20]}  Rxd5 {[%clk 0:01:46]} 27. exd5 {[%clk 0:01:21]}  Rc2 {[%clk 0:01:46]} 28. Qxc2 {[%clk 0:01:10]}  Qf3+ {[%clk 0:01:45]} 29. Kg1 {[%clk 0:01:10]}  Nd3 {[%clk 0:01:40]} 30. Qc8# {[%clk 0:01:09]} 1-0


[Site "https://www.chess.com"]